[Event "5th Vera Menchik Memorial 2022"]
[Site "Prag"]
[Date "2022.06.05"]
[Round "3.9"]
[White "Pascucci, Marco"]
[Black "Jacko, Vladimir"]
[Result "0-1"]
[ECO "E12"]
[WhiteElo "2155"]
[BlackElo "2379"]
[Annotator "TA"]
[PlyCount "58"]
[EventDate "2022.06.05"]
[EventType "tourn"]
[EventCountry "CZE"]
[SourceTitle "playchess.com"]
[Source "ChessBase"]
[SourceQuality "1"]
[TimeControl "720+3"]

{[%evp 11,58,0,8,8,38,27,31,26,42,32,32,0,30,19,10,17,20,24,50,45,177,0,0,-14,27,23,36,12,0,-80,-19,-430,-427,-403,118,-346,-343,-332,-181,-272,-175,-858,-474,-513,-523,-29971,-29964,-29997,-29998]} 1. Nf3 {[%emt 0:00:02]} Nf6 {[%emt 0:00:17]} 2. c4 {[%emt 0:00:09]} b6 {[%emt 0:00:28]} 3. Nc3 {[%emt 0:00:08]} Bb7 {[%emt 0:00:01]} 4. d4 {[%emt 0:00:27]} e6 {[%emt 0:00:07]} 5. a3 {[%emt 0:00:18]} Be7 {[%emt 0:00:33]} 6. Qc2 {[%emt 0:00:19]} d5 {[%emt 0:00:10]} 7. Bf4 {[%emt 0:00:42] E12: Queen's Indian: Unusual White 4th moves, 4 a3, 4 Nc3 Bb7 5 a3 and 4 Nc3 Bb7 .} a6 {[%emt 0:00:16]} 8. cxd5 {[%emt 0:00:20]} exd5 {[%emt 0:00:22]} 9. e3 {[%emt 0:00:05] White is slightly better.} Nbd7 {[%emt 0:00:31]} 10. Bd3 {[%emt 0:00:37]} O-O {[%emt 0:01:11]} 11. h4 {[%emt 0:01:40][%cal Og2g4] [#]} Re8 $146 {[%emt 0:00:19]} ({Predecessor:} 11... c5 12. h5 b5 13. g4 Re8 14. g5 Ne4 15. g6 Bf6 16. gxh7+ Kxh7 17. Kf1 Rc8 18. dxc5 Ndxc5 {1-0 (43) Korneev,S (2105)-Rodriguez Redondo,E (1755) Santa Cruz de Tenerife 2014}) 12. h5 {[%emt 0:00:31][%cal Og2g4]} c5 {[%emt 0:00:22]} 13. g4 {[%emt 0:00:40]} cxd4 {[%emt 0:02:48]} 14. Nxd4 {[%emt 0:00:22] White wants to play g5.} Ne4 {[%emt 0:00:02] Prevents g5.} 15. f3 {[%emt 0:01:06]} ({Much worse is} 15. Bxe4 dxe4 16. O-O-O Nc5 $11) 15... Nxc3 {[%emt 0:00:44]} (15... Ndc5 $14) 16. bxc3 $2 {[%emt 0:00:10]} (16. Bxh7+ $18 Kh8 17. bxc3) 16... Nf8 $11 {[%emt 0:00:28]} 17. Kf2 {[%emt 0:00:45]} Bh4+ {[%emt 0:00:49]} 18. Kg2 {[%emt 0:00:20][%cal Oh1h4] aiming for Rxh4!} Bg5 {[%emt 0:00:01]} 19. Bxg5 {[%emt 0:01:09]} Qxg5 {[%emt 0:00:01]} 20. Nf5 {[%emt 0:00:01]} (20. f4 $11 Qe7 21. Rh3) 20... d4 {[%emt 0:00:19]} (20... g6 $17 21. Nd4 Qxe3) 21. cxd4 $2 {[%emt 0:00:26][%mdl 8192]} (21. e4 $11 {and White is okay.}) 21... Qxg4+ $1 $19 {[%emt 0:00:03]} 22. Kh2 {[%emt 0:00:02]} Bxf3 {[%emt 0:00:16] [#]} (22... Qxf3 $19 23. Qe2 Qxe2+ 24. Bxe2 Bxh1 25. Rxh1 g6) 23. Rhg1 $2 {[%emt 0:00:06][%mdl 8192]} (23. Nh6+ $1 $16 {[%mdl 512] is necessary to keep the advantage.} gxh6 24. Rhg1) 23... Qxh5+ {[%emt 0:00:03]} 24. Kg3 {[%emt 0:00:01]} Ng6 {[%emt 0:00:20]} (24... Bg4 $142 25. Qh2 Qxh2+ 26. Kxh2 Bxf5 27. Bxf5 Rxe3) 25. Raf1 {[%emt 0:00:09]} (25. Qh2 $142 Qxh2+ 26. Kxh2) 25... Rac8 {[%emt 0:00:19]} 26. Qb1 {[%emt 0:00:11]} (26. Qh2 Qxh2+ 27. Kxh2) 26... Ba8 {[%emt 0:00:07][%cal Oe8e3]} 27. e4 {[%emt 0:00:29]} Rc3 {[%emt 0:00:08][%csl LRa3,LRe4] ( -> ...Rxe4)} 28. d5 {[%emt 0:00:49]} Rxe4 {[%emt 0:00:12]} 29. Kf2 {[%emt 0:00:17]} Qxf5+ {[%emt 0:00:00] Weighted Error Value: White=1.15/Black=0.85} 0-1

[Event "5th Vera Menchik Memorial 2022"]
[Site "Prag"]
[Date "2022.06.05"]
[Round "3.10"]
[White "Postupa, Pavel"]
[Black "Pachmann, Ales"]
[Result "1-0"]
[ECO "B51"]
[WhiteElo "2235"]
[BlackElo "2288"]
[Annotator "TA"]
[PlyCount "75"]
[EventDate "2022.06.05"]
[EventType "tourn"]
[EventCountry "CZE"]
[SourceTitle "playchess.com"]
[Source "ChessBase"]
[SourceQuality "1"]
[TimeControl "720+3"]

{[%evp 11,75,42,57,5,15,10,9,9,47,31,53,54,98,73,81,78,81,67,83,87,84,54,61,55,124,85,171,164,249,140,131,129,134,127,131,139,135,127,144,145,414,296,485,479,479,195,191,206,191,181,387,389,387,372,507,504,861,543,29998,29999,29999,525,950,888,733,587]} 1. e4 {[%emt 0:12:06]} c5 {[%emt 0:00:01]} 2. Nf3 {[%emt 0:00:00]} Nc6 {[%emt 0:00:03]} 3. Bb5 {[%emt 0:00:00]} d6 {[%emt 0:00:03]} 4. O-O {[%emt 0:00:00]} Bd7 {[%emt 0:00:02]} 5. Re1 {[%emt 0:00:00]} Nf6 {[%emt 0:00:10]} 6. c3 {[%emt 0:00:00]} e5 {[%emt 0:00:33]} 7. d3 {[%emt 0:00:00] B51: Sicilian: Moscow Variation (3 Bb5+) without 3...Bd7.} (7. d4 $14) 7... Be7 {[%emt 0:00:03]} 8. h3 {[%emt 0:00:00]} O-O {[%emt 0:00:04]} 9. Nbd2 {[%emt 0:00:00][%cal Bb1d2,Bd2f1,Bf1g3][%mdl 32] [#] The position is equal.} Na5 $146 {[%emt 0:00:47]} ({Predecessor:} 9... a6 10. Ba4 b5 11. Bc2 Be6 12. a4 b4 13. Nc4 Nd7 14. Ne3 f5 15. exf5 Bxf5 16. Nxf5 Rxf5 {1-0 (44) Hamelovsky,A-Shagin,A Kislovodsk 2009}) 10. Bxd7 {[%emt 0:00:00]} Nxd7 {[%emt 0:00:22]} 11. Nf1 {[%emt 0:00:00]} f5 {[%emt 0:01:12]} 12. exf5 {[%emt 0:00:00]} Rxf5 {[%emt 0:00:03]} 13. Ng3 {[%emt 0:00:00]} Rf8 {[%emt 0:00:18]} 14. d4 {[%emt 0:00:00]} cxd4 {[%emt 0:00:18]} 15. cxd4 {[%emt 0:00:00]} Kh8 {[%emt 0:00:17]} 16. dxe5 {[%emt 0:00:00]} Nxe5 {[%emt 0:00:05]} 17. Nd4 {[%emt 0:00:00] [#] Threatens to win with Ne6.} Qb6 {[%emt 0:00:45]} ({Better is} 17... Qd7 $14) 18. b3 {[%emt 0:00:00]} Bf6 {[%emt 0:00:19]} (18... Nac6 $16 19. Be3 Qa5) 19. Be3 $18 {[%emt 0:00:00] Black must now prevent Ne6.} Qb4 {[%emt 0:01:43]} (19... Qa6 {might work better.}) 20. a3 {[%emt 0:00:00]} ({White should play} 20. Ne4 $18) 20... Qc3 $16 {[%emt 0:00:08]} 21. Ne4 {[%emt 0:00:00]} Qd3 {[%emt 0:00:32]} 22. Nxf6 {[%emt 0:00:00]} Rxf6 {[%emt 0:00:45]} 23. Qxd3 {[%emt 0:00:00]} Nxd3 {[%emt 0:00:02]} 24. Red1 $36 {[%emt 0:00:00][%mdl 2048] Black is under strong pressure.} Nf4 {[%emt 0:00:47]} 25. Rac1 {[%emt 0:00:00]} Raf8 $2 {[%emt 0:00:42][%mdl 8192] A mistake that costs the game.} (25... Nxb3 $16 {was necessary.} 26. Bxf4 (26. Nxb3 Ne2+ 27. Kh2 Nxc1 $16) 26... Nxc1 27. Bxc1 Kg8) 26. b4 {[%emt 0:00:00]} Nc6 $2 {[%emt 0:00:51]} (26... Nb3 {is a better defense.}) 27. Bxf4 $18 {[%emt 0:00:00]} Rxf4 {[%emt 0:00:25]} 28. Nxc6 {[%emt 0:00:00]} (28. Ne6 $142) 28... bxc6 {[%emt 0:00:05]} 29. Rxd6 {[%emt 0:00:00]} ({Much less strong is} 29. Rxc6 Rxf2 30. Rcxd6 (30. Rdxd6 Rf1+ 31. Kh2 R1f7 $16) 30... h6) 29... Rxf2 {[%emt 0:00:16]} 30. Rcxc6 {[%emt 0:00:00][%mdl 4096] [#] Endgame And now Rd7 would win. KRR-KRR} ({But not} 30. Rdxc6 Kg8 31. Rc7 R2f7) 30... Ra2 $2 {[%emt 0:00:25]} (30... R2f7 31. b5 h6) 31. Ra6 {[%emt 0:00:00]} h5 {[%emt 0:00:20]} 32. Rxa7 {[%emt 0:00:00]} h4 {[%emt 0:00:34] ( -> ...Ra1+)} 33. Rd4 {[%emt 0:00:00]} g5 {[%emt 0:00:13]} (33... Kg8 $142 34. Rxh4 Rf7) 34. Rd5 {[%emt 0:00:00] Strongly threatening Kh2.} Rf4 {[%emt 0:00:24]} 35. Rd8+ {[%emt 0:00:00]} Rf8 {[%emt 0:00:11]} 36. Rd4 (36. Rxf8# $142) 36... Ra1+ 37. Kh2 {[%emt 0:01:48]} Rb8 {[%emt 0:00:06]} 38. Rd5 {[%emt 0:00:03] Weighted Error Value: White=0.50/Black=0.88} 1-0

[Event "5th Vera Menchik Memorial 2022"]
[Site "Prag"]
[Date "2022.06.05"]
[Round "3.11"]
[White "Bartonicek, Zdenek"]
[Black "Fedorov, Evgueny"]
[Result "0-1"]
[WhiteElo "2007"]
[BlackElo "2236"]
[Annotator "TA"]
[PlyCount "32"]
[EventDate "2022.06.05"]
[EventType "tourn"]
[EventCountry "CZE"]
[SourceTitle "playchess.com"]
[Source "ChessBase"]
[SourceQuality "1"]
[TimeControl "720+3"]

{[%evp 13,14,42,42]} 1. d4 {[%emt 0:00:01]} Nf6 {[%emt 0:00:00]} 2. Nf3 {[%emt 0:00:01]} g6 {[%emt 0:00:00]} 3. c4 {[%emt 0:00:17]} Bg7 {[%emt 0:00:11]} 4. g3 {[%emt 0:00:01]} O-O {[%emt 0:00:02]} 5. Bg2 {[%emt 0:00:04]} d6 {[%emt 0:00:01]} 6. O-O {[%emt 0:00:03]} Nc6 {[%emt 0:00:01]} 7. Nc3 {[%emt 0:00:03]} a6 {[%emt 0:00:02][%mdl 32768] [#] Loss on time!? 7...e5 is the fancy move.} {Predecessor:} 8. e4 $146 {E63: King's Indian: Fianchetto: Panno Variation with 7...a6.} Rb8 9. c5 b5 10. d5 Na5 11. b4 Nc4 12. Nd4 Qe8 13. a4 e5 14. Nc6 Rb7 15. axb5 axb5 16. Ra8 Qd7 {1-0 (26) Mamedyarov,S (2767)-Rapport,R (2763) Baku 2021} 0-1

[Event "5th Vera Menchik Memorial 2022"]
[Site "Prag"]
[Date "2022.06.05"]
[Round "3.12"]
[White "Burdalev, Kirill"]
[Black "Rehak, Martin"]
[Result "1-0"]
[ECO "B02"]
[WhiteElo "2381"]
[BlackElo "2001"]
[Annotator "TA"]
[PlyCount "104"]
[EventDate "2022.06.05"]
[EventType "tourn"]
[EventCountry "CZE"]
[SourceTitle "playchess.com"]
[Source "ChessBase"]
[SourceQuality "1"]
[TimeControl "720+3"]

{[%evp 9,104,27,51,-11,34,7,14,-28,39,42,47,18,32,53,68,76,71,78,83,57,100,90,105,55,122,45,52,0,28,-21,-14,-25,-14,-19,-14,-69,-80,-67,-72,-84,-69,-125,-104,-148,-155,-167,-129,-144,-115,-270,-265,-284,-230,-230,-223,-207,-197,-207,-171,-171,-137,-200,-200,-204,-192,-342,-15,-243,-240,-271,-257,-612,-612,-707,-704,-712,-712,-622,-616,-704,-704,-704,-602,-565,-463,-457,-450,-470,-427,-534,-534,-533,-529,-503,-502,-464,-321]} 1. e4 {[%emt 0:00:02]} Nf6 {[%emt 0:00:03]} 2. Nc3 {[%emt 0:00:17]} d5 {[%emt 0:00:02]} 3. exd5 {[%emt 0:00:33]} Nxd5 {[%emt 0:00:03]} 4. Nf3 {[%emt 0:00:29]} Bg4 {[%emt 0:00:49]} 5. Be2 {[%emt 0:00:05]} Nf4 {[%emt 0:03:05]} 6. O-O {[%emt 0:00:15] B02: Alekhine's Defence: Chase Variation and lines with early Nc3.} (6. d4 $14 Nxe2 7. Qxe2) 6... Nc6 {[%emt 0:00:26] [#]} 7. Bc4 $146 {[%emt 0:00:30]} ({Predecessor:} 7. h3 Nxe2+ 8. Nxe2 Bxf3 9. gxf3 Qd5 10. Ng3 Ne5 11. Kg2 Ng6 12. Ne4 Nh4+ 13. Kg3 Qe5+ {0-1 (13) Simon,P (1654)-Cermak,M (2106) Liberec 2019}) 7... e6 {[%emt 0:01:01] And now ...Nd4 would win.} 8. Bb5 {[%emt 0:01:03] The position is equal.} a6 {[%emt 0:00:38]} ({Black should play} 8... Qf6 $1 $11) 9. Bxc6+ $14 {[%emt 0:00:10]} bxc6 {[%emt 0:00:01]} 10. d4 {[%emt 0:00:01]} Nd5 {[%emt 0:00:05]} 11. Ne4 $36 {[%emt 0:00:16][%mdl 2048] Black is under pressure.} Be7 {[%emt 0:00:08]} 12. h3 {[%emt 0:00:59]} Bh5 {[%emt 0:00:03]} 13. Ng3 {[%emt 0:00:05] Pair of Knights!} Bg6 {[%emt 0:00:04]} 14. Ne5 {[%emt 0:00:09]} c5 {[%emt 0:01:03]} 15. c4 {[%emt 0:00:37] Strongly threatening Qa4+.} Nb6 {[%emt 0:00:41] [#] Inhibits Qa4+.} 16. Nc6 {[%emt 0:00:22] White is more active.} ({Better is} 16. d5 $1 $16) 16... Qd6 {[%emt 0:00:19] [#] Inhibits Bf4.} ({Black should try} 16... Qd7 $1 $14 17. Nxe7 Qxe7) 17. Nxe7 {[%emt 0:00:05]} (17. Qf3 $1 $16 {aiming for Bf4.} cxd4 18. Bf4) 17... Qxe7 {[%emt 0:00:02]} 18. d5 {[%emt 0:00:01]} (18. b3 $14) 18... O-O {[%emt 0:00:19][%cal Bh8f8,Bf8d8,Bd8d5][%mdl 32]} 19. b3 {[%emt 0:01:07]} (19. Re1 $142) 19... exd5 $11 {[%emt 0:00:06]} 20. cxd5 {[%emt 0:00:02]} Rfd8 {[%emt 0:00:18]} 21. Bb2 {[%emt 0:00:22]} Nxd5 {[%emt 0:00:47][%cal Bb6d5,Bd5b4,Bb4d3][%mdl 32]} 22. Qc1 {[%emt 0:00:25]} (22. Qg4 $11) 22... Nb4 $15 {[%emt 0:00:21]} 23. Qc3 {[%emt 0:00:18][%csl Gb2][%cal Rc3g7]} Qf8 {[%emt 0:00:01]} 24. Rfc1 {[%emt 0:01:08]} Rd5 {[%emt 0:00:23]} 25. Ba3 {[%emt 0:00:26]} (25. Nf1 $15) 25... Nd3 $17 {[%emt 0:00:25]} 26. Rf1 {[%emt 0:00:16]} Rad8 {[%emt 0:00:10]} 27. Rad1 {[%emt 0:00:48]} Qd6 {[%emt 0:00:30]} 28. Rd2 {[%emt 0:00:18]} h5 {[%emt 0:00:12]} 29. h4 $2 {[%emt 0:00:29]} (29. Bb2 $17 f6 30. Rfd1) 29... Qf4 $19 {[%emt 0:00:10]} 30. Bb2 {[%emt 0:00:10]} Nxb2 {[%emt 0:00:28]} 31. Rxd5 {[%emt 0:00:02]} Rxd5 {[%emt 0:00:02]} 32. Qxb2 {[%emt 0:00:02]} Qxh4 {[%emt 0:00:03]} 33. Qe2 {[%emt 0:00:16]} Qd8 {[%emt 0:00:29] ...Bd3 is the strong threat.} 34. Re1 {[%emt 0:00:04]} Rd6 {[%emt 0:00:01]} 35. Qe8+ {[%emt 0:00:08]} (35. Nf1 $17) 35... Qxe8 {[%emt 0:00:03]} 36. Rxe8+ {[%emt 0:00:01][%mdl 4096] Endgame KRB-KRN} Kh7 {[%emt 0:00:00]} 37. Ne4 {[%emt 0:00:21]} (37. f4 {is a better defense.} f6 38. Re7) 37... Rc6 $2 {[%emt 0:00:16]} (37... Rd1+ $19 38. Kh2 f5) 38. Nc3 $2 {[%emt 0:00:07]} (38. Ng5+ $1 $11 Kh6 39. f4) 38... c4 {[%emt 0:00:03][%cal Bc5c4,Bc4c3,Bc3c2][%mdl 32] Threatens to win with ...cxb3.} 39. b4 {[%emt 0:00:03]} Rd6 {[%emt 0:00:01][%cal Bc6d6,Bd6d3,Bd3a3,Ba3a2,Ba2b2,Bb2b4][%mdl 32]} 40. Rc8 $2 {[%emt 0:00:06]} (40. Re3) 40... Rd3 {[%emt 0:00:02] Black is clearly winning.} 41. Na4 {[%emt 0:00:16]} Ra3 {[%emt 0:00:06]} 42. Nc5 {[%emt 0:00:02]} Rxa2 {[%emt 0:00:07]} 43. Rxc7 {[%emt 0:00:01]} c3 {[%emt 0:00:03]} 44. Nb3 {[%emt 0:00:09] Inhibits Ra1+.} c2 {[%emt 0:00:02]} 45. Kh2 {[%emt 0:00:14]} Rb2 {[%emt 0:00:01]} 46. Nd4 {[%emt 0:00:05]} Rxb4 {[%emt 0:00:05]} 47. Nxc2 {[%emt 0:00:03]} Rb2 {[%emt 0:00:05]} 48. Nd4 {[%emt 0:00:17]} Rxf2 {[%emt 0:00:02]} 49. Nf3 {[%emt 0:00:10]} Kh6 {[%emt 0:00:03]} 50. Rc8 {[%emt 0:00:02]} Ra2 {[%emt 0:00:04]} 51. Rh8+ {[%emt 0:00:03]} Bh7 {[%emt 0:00:00]} 52. Ne5 {[%emt 0:00:05]} f6 {[%emt 0:00:02][%mdl 32768] Weighted Error Value: White=0.47/Black=0.28 (precise) . Loss on time!?} 1-0

[Event "5th Vera Menchik Memorial 2022"]
[Site "Prag"]
[Date "2022.06.05"]
[Round "3.13"]
[White "Benes, Petr"]
[Black "Hrabusa, Matej"]
[Result "0-1"]
[ECO "E05"]
[WhiteElo "2121"]
[BlackElo "2361"]
[Annotator "TA"]
[PlyCount "74"]
[EventDate "2022.06.05"]
[EventType "tourn"]
[EventCountry "CZE"]
[SourceTitle "playchess.com"]
[Source "ChessBase"]
[SourceQuality "1"]
[TimeControl "720+3"]

{[%evp 17,74,29,47,4,77,65,66,12,34,6,43,46,130,144,155,147,153,147,149,75,70,76,166,154,149,6,150,-78,-72,-167,-174,-306,-114,-118,-102,-699,-684,-664,-667,-787,-733,-788,-777,-837,-836,-1254,-1217,-29988,-29984,-29989,-740,-723,-732,-1834,-1778,-29989,-29990,-29991,-29980]} 1. Nf3 {[%emt 0:00:04]} d5 {[%emt 0:00:01]} 2. g3 {[%emt 0:00:03]} Nf6 {[%emt 0:00:03]} 3. Bg2 {[%emt 0:00:01]} e6 {[%emt 0:00:02]} 4. O-O {[%emt 0:00:35]} Be7 {[%emt 0:00:01]} 5. d4 {[%emt 0:00:07]} O-O {[%emt 0:00:05]} 6. c4 {[%emt 0:00:01]} dxc4 {[%emt 0:00:06]} 7. Ne5 {[%emt 0:00:13]} c5 {[%emt 0:00:18]} 8. dxc5 {[%emt 0:00:18]} Bxc5 {[%emt 0:00:05]} 9. Nxc4 {[%emt 0:00:08]} Qc7 {[%emt 0:00:33]} 10. Qc2 {[%emt 0:00:26] E05: Open Catalan: 5 Nf3 Be7.} Nbd7 {[%emt 0:00:05] [#]} (10... Nc6 $11) 11. Bd2 $146 {[%emt 0:01:54]} ({Predecessor:} 11. Qe4 Nxe4 12. Bxe4 Bxf2+ 13. Rxf2 Qxc4 14. Nc3 Nf6 15. Bf3 e5 16. e4 Bg4 17. Bg2 {0-1 (29) Rodrigues da Silva,E (2148)-Franca Pessoa,A (1884) Joao Pessoa 2018}) 11... Rb8 {[%emt 0:00:09]} 12. Rc1 {[%emt 0:00:17]} (12. Nba3 $14) 12... b6 $11 {[%emt 0:00:53]} 13. Nba3 {[%emt 0:00:21] Black must now prevent b4.} (13. Bf4 $5 {[%cal Rf4c7]} e5 14. Be3 $11) 13... a6 {[%emt 0:00:15]} 14. b4 {[%emt 0:00:17]} Be7 {[%emt 0:00:25]} (14... Bd4 $14) 15. Bf4 $36 {[%emt 0:00:22][%mdl 2048] White is really pushing.} Qa7 {[%emt 0:01:09]} 16. Bxb8 {[%emt 0:00:17]} Qxb8 {[%emt 0:00:01]} 17. Rab1 {[%emt 0:00:13]} Bb7 {[%emt 0:00:11]} 18. Qd3 {[%emt 0:00:34]} (18. Bxb7 $142 Qxb7 19. Qb3) 18... Bxg2 {[%emt 0:00:35]} 19. Kxg2 {[%emt 0:06:49]} Rd8 {[%emt 0:00:18]} (19... b5 $16 {was necessary.}) 20. Qf3 $18 {[%emt 0:00:00]} Nd5 {[%emt 0:00:10]} 21. Nc2 {[%emt 0:00:00]} (21. b5 $1 $16) 21... Qa8 {[%emt 0:00:19]} (21... b5 $1 $11 {keeps the balance.} 22. Nd2 Bg5) 22. a3 $2 {[%emt 0:00:00]} (22. N2e3 $16 {keeps the pressure on.}) 22... b5 $17 {[%emt 0:00:06]} 23. e4 {[%emt 0:00:00]} (23. N2e3 $17 {is the only way for White.} bxc4 24. Nxc4) 23... N5f6 $1 $19 {[%emt 0:00:10]} 24. Na5 {[%emt 0:00:00] [#]} (24. N2e3 {was worth a try.}) 24... Nxe4 $2 {[%emt 0:00:02]} (24... Ne5 $1 $19 {[%cal Re5f3] has better winning chances.} 25. Qe3 (25. Qf4 $2 Nxe4 26. Ne1 Bf6 $19) 25... Rd3) 25. Re1 $17 {[%emt 0:00:00] [#]} f5 {[%emt 0:00:10][%cal Bf7f5,Bf5e4][%mdl 32] Strongly threatening ...Ne5.} 26. Kg1 $2 {[%emt 0:00:00][%mdl 8192] This costs White the game.} (26. Rxe4 $17 fxe4 27. Qg4 e3+ 28. Kh3) 26... Ne5 $19 {[%emt 0:00:06]} 27. Qg2 {[%emt 0:00:00]} Rd2 $1 {[%emt 0:00:13][%csl LRc2,LRf2]} 28. Rxe4 {[%emt 0:00:00]} fxe4 {[%emt 0:00:04]} 29. Ne1 {[%emt 0:00:00]} Qd5 {[%emt 0:00:15]} 30. Nb3 {[%emt 0:00:00]} Re2 {[%emt 0:00:19][%cal Oe2e1]} 31. Kf1 {[%emt 0:00:00]} Qc4 {[%emt 0:00:20] ( -> ...Rb2+)} 32. Na5 {[%emt 0:00:00] [#]} Rxe1+ $1 {[%emt 0:00:16][%mdl 512]} 33. Kxe1 {[%emt 0:00:00]} Qd3 {[%emt 0:00:07]} (33... Qc2 $142 34. Rb3 Nd3+ 35. Rxd3 exd3 36. Qa8+ Bf8 37. Kf1 d2 38. Kg2 d1=Q 39. Qf3 Qxf3+ 40. Kxf3 Qd3+ 41. Kg2 Qxa3 42. Nc6 Qc3 43. Nb8 Bxb4 44. g4 Qc8 45. Nxa6 Qxa6 46. g5 Bc5 47. Kg3 Qa2 48. f3 Qf2+ 49. Kf4 Bd6+ 50. Ke4 Qe2+ 51. Kd4 Qxf3 52. h4 e5#) 34. Rb3 {[%emt 0:00:00]} Qd5 {[%emt 0:01:37] Threatens to win with ...Nf3+.} 35. Re3 {[%emt 0:00:00]} Nf3+ {[%emt 0:00:08]} 36. Rxf3 {[%emt 0:00:00]} exf3 {[%emt 0:00:01]} 37. Qf1 {[%emt 0:00:00]} Bg5 {[%emt 0:00:12] Weighted Error Value: White=1.27/Black=0.53} 0-1

[Event "5th Vera Menchik Memorial 2022"]
[Site "Prag"]
[Date "2022.06.05"]
[Round "3.14"]
[White "Cap, Adam"]
[Black "Holy, Filip"]
[Result "1/2-1/2"]
[ECO "B15"]
[WhiteElo "2269"]
[BlackElo "2066"]
[Annotator "TA"]
[PlyCount "46"]
[EventDate "2022.06.05"]
[EventType "tourn"]
[EventCountry "CZE"]
[SourceTitle "playchess.com"]
[Source "ChessBase"]
[SourceQuality "1"]
[TimeControl "720+3"]

{[%evp 16,46,48,17,8,0,10,-12,0,-12,-8,-23,6,-79,-81,-79,0,0,0,0,0,0,0,-20,0,0,0,0,0,0,0,0,0]} 1. e4 {[%emt 0:00:02]} c6 {[%emt 0:00:00]} 2. d4 {[%emt 0:00:05]} d5 {[%emt 0:00:01]} 3. Nc3 {[%emt 0:00:01]} dxe4 {[%emt 0:00:02]} 4. Nxe4 {[%emt 0:00:01]} Nf6 {[%emt 0:00:01]} 5. Nxf6+ {[%emt 0:00:02]} exf6 {[%emt 0:00:01]} 6. Nf3 {[%emt 0:00:11]} Bd6 {[%emt 0:00:02]} 7. Bd3 {[%emt 0:00:13]} O-O {[%emt 0:00:02]} 8. O-O {[%emt 0:00:03]} Nd7 {[%emt 0:00:12]} 9. c3 {[%emt 0:00:06]} Re8 {[%emt 0:00:11] B15: Caro-Kann: 3 Nc3: 3...g6 and 3...dxe4 4 Nxe4 Nf6 5 Nxf6+ exf6.} 10. Qc2 {[%emt 0:00:05]} Nf8 {[%emt 0:00:01]} 11. h3 {[%emt 0:00:02]} Be6 {[%emt 0:00:18]} 12. Bd2 $1 {[%emt 0:00:03]} Qd7 {[%emt 0:00:07][%cal Oe6h3]} 13. Rfe1 {[%emt 0:01:47]} Ng6 {[%emt 0:02:09][%cal Oe6h3]} (13... Bxh3 {looks sharper.} 14. Rxe8 Rxe8 15. gxh3 Qxh3 16. Qd1 g5) 14. Bxg6 {[%emt 0:02:18]} (14. Re3 $11 {remains equal.}) 14... hxg6 $17 {[%emt 0:00:05]} 15. c4 {[%emt 0:00:06]} Bxh3 {[%emt 0:01:04]} 16. gxh3 $11 {[%emt 0:00:14] The position is equal.} Qxh3 {[%emt 0:00:04] [#] And now ...Qg4+ would win.} 17. Qb3 $146 {[%emt 0:00:29]} ({Predecessor:} 17. Qd3 Bh2+ 18. Kh1 Bf4+ 19. Kg1 Bxd2 20. Re4 Rxe4 21. Qxe4 f5 22. Qd3 Bf4 23. Re1 g5 24. Re2 g4 {0-1 (24) Baragano Campa,D (2148)-Bendayan Claros,A (2031) Aviles 2008}) 17... g5 {[%emt 0:02:00][%cal Bg6g5,Bg5g4][%mdl 32] aiming for ...g4.} 18. Rxe8+ {[%emt 0:01:10]} Rxe8 {[%emt 0:00:02]} 19. Re1 {[%emt 0:00:01]} Rxe1+ {[%emt 0:00:16]} 20. Bxe1 {[%emt 0:00:01]} g4 {[%emt 0:00:20]} 21. Nd2 {[%emt 0:00:19] [#] Qxh3 is the strong threat.} Bh2+ {[%emt 0:02:05]} 22. Kh1 {[%emt 0:00:00] Black must now prevent Qxh3.} Bg3+ {[%emt 0:00:07]} (22... g3 $5 23. Qf3 gxf2 24. Bxf2 Bg3+ 25. Kg1 Bh2+ 26. Kh1 Bg3+ 27. Kg1 Bh2+ 28. Kh1 $11) 23. Kg1 {[%emt 0:00:03]} Bh2+ {[%emt 0:00:03] Weighted Error Value: White=0.21 (precise) /Black=0.13 (very precise)} 1/2-1/2